bitfinex-derivatives/quotes_BNBF0:USTF0_20251225
["timestamp","ask_amount","ask_price","bid_price","bid_amount"]
[1766659838723,0.88736873,836.64,835.56,1.79082828]
[1766659838921,0.88736873,836.64,834.96,2.98109633]
[1766659838922,0.88736873,836.57,835.5,1.79082828]
[1766659839222,0.70231404,836.56,835.51,1.79082828]
[1766659839421,0.70231404,836.55,835.58,1.79082828]
[1766659839620,0.70231404,836.54,835.62,1.79082828]
[1766659839822,0.70231404,836.53,835.62,1.79082828]
[1766659840020,0.70231404,836.52,835.62,1.79082828]
[1766659840220,0.70231404,836.51,835.59,1.79082828]
[1766659840423,0.70231404,836.5,835.59,1.79082828]
[1766659840623,0.88736873,836.07,834.91,1.79082828]
[1766659840823,0.70231404,836.06,834.93,1.79082828]
[1766659841121,0.88736873,835.82,834.66,1.79082828]
[1766659841324,0.70231404,835.81,834.49,1.79082828]
[1766659841521,1.89998799,835.8,834.49,1.79082828]
[1766659841821,0.88736873,835.77,834.3,1.79082828]
[1766659842026,1.89998799,835.76,834.3,1.79082828]
[1766659842222,1.89998799,835.76,833.7,2.98109633]
[1766659842223,0.70231404,835.75,834.39,1.79082828]
[1766659842424,0.87947505,836.07,834.41,1.79082828]
[1766659842624,1.89350807,836.06,834.41,1.79082828]
[1766659842826,1.89350807,836.05,834.41,1.79082828]
[1766659843025,1.89350807,836.04,834.41,1.79082828]
[1766659843227,1.89350807,836.03,834.32,1.79082828]
[1766659843422,1.89350807,836.02,834.32,1.79082828]
[1766659843626,1.89350807,836.01,834.33,1.79082828]
[1766659843824,1.89350807,836.0,834.33,1.79082828]
[1766659844022,1.89350807,835.99,834.33,1.79082828]
[1766659844224,1.89350807,835.98,834.25,1.79082828]
[1766659844525,1.89350807,835.97,834.25,1.79082828]
[1766659844729,1.89350807,835.96,834.25,1.79082828]
[1766659845025,1.89350807,835.95,834.25,1.79082828]
[1766659845225,1.89350807,835.94,834.25,1.79082828]
[1766659845429,1.89350807,835.93,834.19,1.79082828]
[1766659845725,1.89350807,835.92,834.19,1.79082828]
[1766659845928,1.89350807,835.91,834.19,1.79082828]
[1766659846130,0.69585427,835.9,834.19,1.79082828]
[1766659846330,0.69585427,835.89,834.13,1.79082828]
[1766659846528,0.69585427,835.88,834.13,1.79082828]
[1766659846827,0.69585427,835.87,834.13,1.79082828]
[1766659847031,0.87947505,836.13,834.13,1.79082828]
[1766659847231,1.89002386,836.12,834.08,1.79082828]
[1766659847431,1.89002386,836.11,834.08,1.79082828]
[1766659847625,1.89002386,836.1,834.08,1.79082828]
[1766659847828,1.89002386,836.09,834.08,1.79082828]
[1766659848129,1.89002386,836.08,834.08,1.79082828]
[1766659848333,1.89002386,836.07,834.03,1.79082828]
[1766659848634,1.89002386,836.06,834.03,1.79082828]
[1766659848831,1.89002386,836.05,834.03,1.79082828]
[1766659849029,1.89002386,836.04,834.03,1.79082828]
[1766659849228,1.89002386,836.03,834.04,1.79082828]
[1766659849528,1.89002386,836.02,834.04,1.79082828]
[1766659849728,1.89002386,836.01,834.04,1.79082828]
[1766659850032,1.89002386,836.0,834.04,1.79082828]
[1766659850231,1.89002386,836.0,833.62,0.20832024]
[1766659850232,1.89002386,835.99,834.01,1.79082828]
[1766659850532,1.89002386,835.98,834.01,1.79082828]
[1766659850730,0.87947505,836.2,834.01,1.79082828]
[1766659850731,1.89002386,835.97,834.01,1.79082828]
[1766659850929,1.89002386,835.96,834.01,1.79082828]
[1766659851129,1.89002386,835.95,834.01,1.79082828]
[1766659851434,1.88996477,835.94,833.98,1.79082828]
[1766659851630,0.87947505,836.21,833.98,1.79082828]
[1766659851928,1.88732927,836.2,833.98,1.79082828]
[1766659852132,1.88732927,836.19,833.98,1.79082828]
[1766659852332,1.88732927,836.18,834.14,1.79082828]
[1766659852531,1.88732927,836.17,834.14,1.79082828]
[1766659852835,1.88732927,836.16,834.14,1.79082828]
[1766659853131,1.88732927,836.15,834.14,1.79082828]
[1766659853436,1.88732927,836.14,834.12,1.79082828]
[1766659853630,1.88732927,836.13,834.12,1.79082828]
[1766659853836,0.87947505,836.4,834.12,1.79082828]
[1766659854030,1.88677981,836.39,834.12,1.79082828]
[1766659854230,1.88677981,836.38,834.11,1.79082828]
[1766659854528,1.88677981,836.37,834.11,1.79082828]
[1766659854733,1.88677981,836.36,834.11,1.79082828]
[1766659855030,1.88677981,836.35,834.11,1.79082828]
[1766659855330,0.87947505,836.33,834.04,1.79082828]
[1766659855535,1.88677981,836.32,834.03,1.79082828]
[1766659855737,1.88677981,836.31,834.03,1.79082828]
[1766659856035,1.88677981,836.3,834.03,1.79082828]
[1766659856230,1.88677981,836.29,834.01,1.79082828]
[1766659856431,1.88677981,836.28,834.01,1.79082828]
[1766659856631,1.88677981,836.27,834.01,1.79082828]
[1766659856835,1.88677981,836.26,834.01,1.79082828]
[1766659857032,1.88677981,836.25,834.01,1.79082828]
[1766659857235,1.88677981,836.24,834.0,1.79082828]
[1766659857432,1.88677981,836.23,834.0,1.79082828]
[1766659857633,1.88677981,836.22,833.95,1.79082828]
[1766659857833,1.88677981,836.21,833.95,1.79082828]
[1766659858034,1.88677981,836.2,833.95,1.79082828]
[1766659858236,1.88677981,836.19,833.94,1.79082828]
[1766659858438,1.88677981,836.18,833.94,1.79082828]
[1766659858633,1.88677981,836.17,833.94,1.79082828]
[1766659858834,1.88677981,836.16,833.91,1.79082828]
[1766659859034,0.01402637,837.06,833.62,0.20832024]
[1766659859035,1.88677981,836.15,833.89,1.79082828]
[1766659859237,1.88677981,836.14,833.85,1.79082828]
[1766659859436,1.88677981,836.13,833.85,1.79082828]
[1766659859635,1.88677981,836.12,833.85,1.79082828]
[1766659859835,1.88677981,836.11,833.85,1.79082828]
[1766659860034,1.88677981,836.1,833.85,1.79082828]
[1766659860238,1.88677981,836.09,833.85,1.79082828]
[1766659860534,1.88677981,836.08,833.85,1.79082828]
[1766659860735,0.87947505,836.06,833.71,1.79082828]
[1766659860938,1.88677981,836.05,833.71,1.79082828]
[1766659861136,1.88677981,836.04,833.71,1.79082828]
[1766659861339,1.88677981,836.03,833.71,1.79082828]
[1766659861634,1.88677981,836.02,833.69,1.79082828]
[1766659861838,1.88677981,836.01,833.68,1.79082828]
[1766659862134,1.88677981,836.0,833.67,1.79082828]
[1766659862339,1.88677981,835.99,833.68,1.79082828]
[1766659862540,1.88677981,835.98,833.68,1.79082828]
[1766659862736,1.88677981,835.97,833.83,1.79082828]
[1766659862941,1.88677981,835.96,833.83,1.79082828]
[1766659863139,1.88677981,835.95,833.83,1.79082828]
[1766659863339,1.88677981,835.94,833.82,1.79082828]
[1766659863535,1.88677981,835.93,833.82,1.79082828]
[1766659863735,1.1973247,835.92,833.82,1.79082828]
[1766659863942,1.1973247,835.91,833.82,1.79082828]
[1766659864134,1.1973247,835.9,833.82,1.79082828]
[1766659864338,1.1973247,835.89,833.82,1.79082828]
[1766659864539,0.87947505,836.2,833.82,1.79082828]
[1766659864740,1.88595677,836.19,833.82,1.79082828]
[1766659864940,1.88595677,836.18,833.82,1.79082828]
[1766659865240,1.88595677,836.17,833.82,1.79082828]
[1766659865441,1.88595677,836.16,833.82,1.79082828]
[1766659865740,1.88595677,836.15,833.82,1.79082828]
[1766659865940,1.88595677,836.14,833.82,1.79082828]
[1766659866140,1.88595677,836.13,833.82,1.79082828]
[1766659866341,1.88595677,836.12,833.82,1.79082828]
[1766659866535,1.88595677,836.11,833.82,1.79082828]
[1766659866741,1.88595677,836.1,833.82,1.79082828]
[1766659866939,1.88595677,836.09,833.82,1.79082828]
[1766659867238,1.88595677,836.08,833.83,1.79082828]
[1766659867443,1.88595677,836.07,833.83,1.79082828]
[1766659867641,1.88595677,836.06,833.83,1.79082828]
[1766659867845,1.88595677,836.05,833.83,1.79082828]
[1766659868045,1.88595677,836.04,833.83,1.79082828]
[1766659868247,1.88595677,836.03,833.83,1.79082828]
[1766659868441,1.88595677,836.02,833.83,1.79082828]
[1766659868642,1.88595677,836.01,833.83,1.79082828]
[1766659868841,1.88595677,836.0,833.83,1.79082828]
[1766659869048,0.87947505,836.17,833.83,1.79082828]
[1766659869049,1.88595677,835.99,833.83,1.79082828]
[1766659869250,1.88595677,835.98,833.84,1.79082828]
[1766659869448,1.88595677,835.97,833.84,1.79082828]
[1766659869645,0.87947505,836.16,833.84,1.79082828]
[1766659869646,1.88595677,835.96,833.84,1.79082828]
[1766659869843,1.88595677,835.95,833.84,1.79082828]
[1766659870048,1.88595677,835.94,833.84,1.79082828]
[1766659870244,1.88595677,835.94,833.62,0.20832024]
[1766659870245,1.88595677,835.93,833.85,1.79082828]
[1766659870449,1.88595677,835.92,833.85,1.79082828]
[1766659870649,1.88595677,835.91,833.85,1.79082828]
[1766659870848,1.88595677,835.9,833.85,1.79082828]
[1766659871048,1.88595677,835.89,833.85,1.79082828]
[1766659871247,1.88595677,835.88,833.86,1.79082828]
[1766659871448,1.88595677,835.87,833.86,1.79082828]
[1766659871646,1.19758985,835.86,833.86,1.79082828]
[1766659871953,1.19758985,835.85,833.86,1.79082828]
[1766659872147,1.19758985,835.84,833.86,1.79082828]
[1766659872347,0.87947505,836.14,833.62,0.20832024]
[1766659872348,1.19758985,835.83,833.87,1.79082828]
[1766659872546,0.87947505,836.13,833.88,1.79082828]
[1766659872750,1.8872053,836.12,833.88,1.79082828]
[1766659872948,1.8872053,836.11,833.88,1.79082828]
[1766659873250,1.8872053,836.1,833.89,1.79082828]
[1766659873451,1.8872053,836.09,833.89,1.79082828]
[1766659873747,1.8872053,836.08,833.89,1.79082828]
[1766659873947,1.8872053,836.07,833.89,1.79082828]
[1766659874149,1.8872053,836.06,833.89,1.79082828]
[1766659874348,1.8872053,836.05,833.91,1.79082828]
[1766659874546,1.8872053,836.04,833.91,1.79082828]
[1766659874747,1.8872053,836.03,833.91,1.79082828]
[1766659874948,1.8872053,836.02,833.91,1.79082828]
[1766659875149,1.8872053,836.01,833.91,1.79082828]
[1766659875448,1.8872053,836.0,833.94,1.79082828]
[1766659875649,1.8872053,835.99,833.94,1.79082828]
[1766659875850,1.8872053,835.98,833.94,1.79082828]
[1766659876052,0.20829904,835.88,833.94,1.79082828]
[1766659876250,1.8872053,835.87,833.97,1.79082828]
[1766659876449,1.8872053,835.86,833.99,1.79082828]
[1766659876650,1.8872053,835.85,833.99,1.79082828]
[1766659876855,1.8872053,835.84,833.99,1.79082828]
[1766659877057,1.8872053,835.83,833.99,1.79082828]
[1766659877356,1.8872053,835.83,833.62,0.20832024]
[1766659877357,1.8872053,835.82,834.02,1.79082828]
[1766659877552,1.8872053,835.81,834.02,1.79082828]
[1766659877754,1.8872053,835.8,834.02,1.79082828]
[1766659877953,1.1975879,835.79,834.02,1.79082828]
[1766659878250,1.1975879,835.79,833.62,0.20832024]
[1766659878251,1.88958394,835.78,834.04,1.79082828]
[1766659878455,1.19754647,835.77,834.05,1.79082828]
[1766659878655,0.20829904,835.88,834.05,1.79082828]
[1766659878854,1.88968439,835.87,834.05,1.79082828]
[1766659879056,1.88968439,835.86,834.05,1.79082828]
[1766659879357,1.88968439,835.85,834.08,1.79082828]
[1766659879557,1.88968439,835.84,834.09,1.79082828]
[1766659879756,0.20829904,835.88,834.09,1.79082828]
[1766659879757,1.88968439,835.83,834.09,1.79082828]
[1766659879958,1.88968439,835.82,834.09,1.79082828]
[1766659880254,1.88968439,835.81,834.13,1.79082828]
[1766659880454,1.88968439,835.8,834.13,1.79082828]
[1766659880753,1.88968439,835.79,834.13,1.79082828]
[1766659880957,1.88968439,835.78,834.14,1.79082828]
[1766659881154,1.88968439,835.77,834.14,1.79082828]
[1766659881352,1.88968439,835.76,834.2,1.79082828]
[1766659881553,0.20829904,835.88,834.29,1.79082828]
[1766659881754,0.69427743,835.87,834.29,1.79082828]
[1766659881958,1.89168038,835.86,834.29,1.79082828]
[1766659882156,1.89168038,835.85,834.32,1.79082828]
[1766659882356,1.89168038,835.84,834.38,1.79082828]
[1766659882559,1.89168038,835.83,834.38,1.79082828]
[1766659882761,1.89168038,835.82,834.4,1.79082828]
[1766659883055,0.69427743,835.81,834.42,1.79082828]
[1766659883255,0.69427743,835.8,834.53,1.79082828]
[1766659883460,0.87947505,836.07,834.56,1.79082828]
[1766659883760,1.89400509,836.06,834.56,1.79082828]
[1766659883961,1.89400509,836.05,834.56,1.79082828]
[1766659884158,1.89400509,836.04,834.56,1.79082828]
[1766659884358,0.20824482,836.17,833.96,2.98109633]
[1766659884359,1.89400509,836.03,834.63,1.79082828]
[1766659884560,1.89400509,836.02,834.63,1.79082828]
[1766659884760,1.89400509,836.01,834.63,1.79082828]
[1766659884955,1.89400509,836.0,834.63,1.79082828]
[1766659885260,0.87947505,835.98,834.72,1.79082828]
[1766659885459,1.89400509,835.97,834.72,1.79082828]
[1766659885660,1.89400509,835.96,834.72,1.79082828]
[1766659885863,1.89400509,835.95,834.72,1.79082828]
[1766659886157,1.89400509,835.94,834.72,1.79082828]
[1766659886358,1.89400509,835.93,834.72,1.79082828]
[1766659886658,1.89400509,835.92,834.72,1.79082828]
[1766659886863,0.69678349,835.91,834.72,1.79082828]
[1766659887059,0.69678349,835.9,834.72,1.79082828]
[1766659887263,0.69678349,835.89,834.73,1.79082828]
[1766659887463,0.69678349,835.88,834.73,1.79082828]
[1766659887663,0.69678349,835.87,834.73,1.79082828]
[1766659887859,0.69678349,835.86,834.73,1.79082828]
[1766659888063,0.69678349,835.85,834.73,1.79082828]
[1766659888260,0.69678349,835.84,834.74,1.79082828]
[1766659888463,0.69678349,835.83,834.74,1.79082828]
[1766659888662,0.87947505,836.05,834.74,1.79082828]
[1766659888663,0.69678349,835.82,834.74,1.79082828]
[1766659888863,0.69678349,835.81,834.74,1.79082828]
[1766659889063,0.69678349,835.8,834.74,1.79082828]
[1766659889258,0.69678349,835.79,834.75,1.79082828]
[1766659889463,0.87947505,836.07,834.74,1.79082828]
[1766659889759,1.89530255,836.06,834.74,1.79082828]
[1766659889963,1.89530255,836.05,834.74,1.79082828]
[1766659890160,0.69811214,836.04,834.74,1.79082828]
[1766659890365,0.69811214,836.03,834.75,1.79082828]
[1766659890564,0.69811214,836.02,834.75,1.79082828]
[1766659890865,0.69811214,836.01,834.75,1.79082828]
[1766659891063,0.69811214,836.0,834.75,1.79082828]
[1766659891263,0.69811214,835.99,834.77,1.79082828]
[1766659891463,0.69811214,835.98,834.77,1.79082828]
[1766659891763,0.69811214,835.97,834.77,1.79082828]
[1766659891963,0.69811214,835.96,834.77,1.79082828]
[1766659892263,0.69811214,835.95,834.78,1.79082828]
[1766659892464,0.69811214,835.94,834.78,1.79082828]
[1766659892663,0.69811214,835.93,834.78,1.79082828]
[1766659892861,0.69811214,835.92,834.78,1.79082828]
[1766659893059,0.69811214,835.91,834.78,1.79082828]
[1766659893364,0.69811214,835.9,834.8,1.79082828]
[1766659893564,0.69811214,835.89,834.8,1.79082828]
[1766659893764,0.69811214,835.88,834.8,1.79082828]
[1766659894065,0.87947505,836.14,834.8,1.79082828]
[1766659894264,0.69783756,836.13,834.81,1.79082828]
[1766659894462,0.69783756,836.12,834.81,1.79082828]
[1766659894660,0.69783756,836.11,834.81,1.79082828]
[1766659894865,0.69783756,836.1,834.81,1.79082828]
[1766659895164,0.69783756,836.09,834.83,1.79082828]
[1766659895361,0.69783756,836.08,834.83,1.79082828]
[1766659895665,0.69783756,836.07,834.83,1.79082828]
[1766659895964,0.69783756,836.06,834.83,1.79082828]
[1766659896161,0.69783756,836.05,834.83,1.79082828]
[1766659896367,0.69783756,836.04,834.86,1.79082828]
[1766659896570,0.69783756,836.03,834.86,1.79082828]
[1766659896763,0.69783756,836.02,834.86,1.79082828]
[1766659896962,0.69783756,836.01,834.86,1.79082828]
[1766659897268,0.69783756,836.0,834.89,1.79082828]
[1766659897567,0.20824482,836.17,834.89,1.79082828]
[1766659897568,0.69783756,835.99,834.89,1.79082828]
[1766659897868,0.20824482,836.17,834.89,1.79082828]
[1766659898168,0.69764276,836.16,834.89,1.79082828]
[1766659898466,0.69764276,836.15,834.89,1.79082828]
[1766659898670,0.69764276,836.14,834.89,1.79082828]
[1766659898864,0.69764276,836.13,834.89,1.79082828]
[1766659899068,0.69764276,836.12,834.89,1.79082828]
[1766659899268,0.69764276,836.11,834.89,1.79082828]
[1766659899466,0.69764276,836.1,834.89,1.79082828]
[1766659899664,0.69764276,836.09,834.89,1.79082828]
[1766659899864,0.69764276,836.08,834.89,1.79082828]
[1766659900164,0.69764276,836.07,834.89,1.79082828]
[1766659900369,0.69764276,836.06,834.89,1.79082828]
[1766659900568,0.69764276,836.05,834.89,1.79082828]
[1766659900765,0.69764276,836.04,834.89,1.79082828]
[1766659901064,0.69764276,836.03,834.89,1.79082828]
[1766659901268,0.69764276,836.02,834.88,1.79082828]
[1766659901469,0.69764276,836.01,834.88,1.79082828]
[1766659901668,0.69764276,836.0,834.88,1.79082828]
[1766659901870,0.20824482,836.17,834.88,1.79082828]
[1766659902063,0.69743954,836.16,834.88,1.79082828]
[1766659902269,0.69743954,836.15,834.88,1.79082828]
[1766659902565,0.69743954,836.14,834.88,1.79082828]
[1766659902865,0.69743954,836.13,834.88,1.79082828]
[1766659903065,0.69743954,836.12,834.88,1.79082828]
[1766659903266,0.69743954,836.11,834.88,1.79082828]
[1766659903565,0.69743954,836.1,834.88,1.79082828]
[1766659903765,0.69743954,836.09,834.88,1.79082828]
[1766659903971,0.69743954,836.08,834.88,1.79082828]
[1766659904169,0.69743954,836.07,834.88,1.79082828]
[1766659904370,0.69743954,836.06,834.88,1.79082828]
[1766659904566,0.69743954,836.05,834.88,1.79082828]
[1766659904770,0.69743954,836.04,834.88,1.79082828]
[1766659904968,0.69743954,836.03,834.88,1.79082828]
[1766659905170,0.69743954,836.02,834.88,1.79082828]
[1766659905368,0.69743954,836.01,834.88,1.79082828]
[1766659905572,0.20824482,836.17,834.88,1.79082828]
[1766659905772,0.69732857,836.16,834.88,1.79082828]
[1766659905972,0.69732857,836.15,834.88,1.79082828]
[1766659906170,0.69732857,836.14,834.88,1.79082828]
[1766659906374,0.69732857,836.13,834.88,1.79082828]
[1766659906674,0.69732857,836.12,834.89,1.79082828]
[1766659906871,0.69732857,836.11,834.89,1.79082828]
[1766659907174,0.69732857,836.1,834.89,1.79082828]
[1766659907368,0.69732857,836.09,834.89,1.79082828]
[1766659907570,0.69732857,836.08,834.89,1.79082828]
[1766659907771,0.69732857,836.07,834.89,1.79082828]
[1766659907977,0.69732857,836.06,834.89,1.79082828]
[1766659908175,0.69732857,836.05,834.89,1.79082828]
[1766659908374,0.69732857,836.04,834.9,1.79082828]
[1766659908576,0.69732857,836.03,834.9,1.79082828]
[1766659908872,0.69732857,836.02,834.9,1.79082828]
[1766659909074,0.69732857,836.01,834.9,1.79082828]
[1766659909274,0.69732857,836.0,834.9,1.79082828]
[1766659909475,0.69732857,835.99,834.9,1.79082828]
[1766659909674,0.20824482,836.17,834.9,1.79082828]
[1766659909874,0.69772308,836.16,834.9,1.79082828]
[1766659910174,0.69772308,836.15,834.9,1.79082828]
[1766659910373,0.69772308,836.14,834.9,1.79082828]
[1766659910580,0.69772308,836.13,834.9,1.79082828]
[1766659910776,0.69772308,836.12,834.9,1.79082828]
[1766659910977,0.69772308,836.11,834.9,1.79082828]
[1766659911177,0.69772308,836.1,834.9,1.79082828]
[1766659911375,0.20824482,836.17,834.3,2.98109633]
[1766659911376,0.69772308,836.09,834.91,1.79082828]
[1766659911578,0.20824482,836.17,834.91,1.79082828]
[1766659911579,0.69772308,836.08,834.91,1.79082828]
[1766659911779,0.69772308,836.07,834.91,1.79082828]
[1766659911981,0.69772308,836.06,834.91,1.79082828]
[1766659912276,0.69772308,836.05,834.91,1.79082828]
[1766659912479,0.69772308,836.04,834.91,1.79082828]
[1766659912780,0.69772308,836.03,834.91,1.79082828]
[1766659912980,0.87947505,836.26,834.92,1.79082828]
[1766659913181,0.20820059,836.17,835.01,1.79082828]
[1766659913378,0.69713325,836.16,834.99,1.79082828]
[1766659913680,0.69713325,836.15,834.99,1.79082828]
[1766659913876,0.69713325,836.14,834.99,1.79082828]
[1766659914080,0.69713325,836.13,834.99,1.79082828]
[1766659914277,0.69713325,836.12,834.99,1.79082828]
[1766659914477,0.20820059,836.17,834.99,1.79082828]
[1766659914478,0.69713325,836.11,834.99,1.79082828]
[1766659914674,0.69713325,836.1,834.99,1.79082828]
[1766659914882,0.69713325,836.09,834.99,1.79082828]
[1766659915175,0.69713325,836.08,834.99,1.79082828]
[1766659915378,0.69713325,836.07,834.99,1.79082828]
[1766659915680,0.69713325,836.06,834.99,1.79082828]
[1766659915981,0.69713325,836.05,834.99,1.79082828]
[1766659916276,0.20820059,836.17,834.99,1.79082828]
[1766659916577,0.69728304,836.16,835.0,1.79082828]
[1766659916776,0.69728304,836.15,835.0,1.79082828]
[1766659916979,0.69728304,836.14,835.0,1.79082828]
[1766659917177,0.69728304,836.13,835.0,1.79082828]
[1766659917380,0.69728304,836.12,835.0,1.79082828]
[1766659917580,0.69728304,836.11,835.0,1.79082828]
[1766659917777,0.69728304,836.1,835.0,1.79082828]
[1766659918080,0.69728304,836.09,835.0,1.79082828]
[1766659918281,0.69728304,836.08,835.0,1.79082828]
[1766659918477,0.69728304,836.07,835.01,1.79082828]
[1766659918681,0.69728304,836.06,835.01,1.79082828]
[1766659918979,0.69728304,836.05,835.01,1.79082828]
[1766659919276,0.69728304,836.04,835.01,1.79082828]
[1766659919576,0.69728304,836.03,835.01,1.79082828]
[1766659919780,0.20820059,836.17,835.01,1.79082828]
[1766659919974,0.69761038,836.16,835.01,1.79082828]
[1766659920174,0.20820059,836.17,835.01,1.79082828]
[1766659920175,0.69761038,836.15,835.01,1.79082828]
[1766659920380,0.69761038,836.14,835.02,1.79082828]
[1766659920580,0.69761038,836.13,835.02,1.79082828]
[1766659920782,0.69761038,836.16,835.02,1.79082828]
[1766659920980,0.69761038,836.15,835.02,1.79082828]
[1766659921281,0.69761038,836.14,835.06,1.79082828]
[1766659921476,0.69761038,836.13,835.06,1.79082828]
[1766659921680,0.69761038,836.12,835.06,1.79082828]
[1766659921881,0.69761038,836.11,835.06,1.79082828]
[1766659922081,0.69761038,836.1,835.06,1.79082828]
[1766659922281,0.69761038,836.09,835.06,1.79082828]
[1766659922481,0.69761038,836.08,835.07,1.79082828]
[1766659922782,0.69761038,836.07,835.07,1.79082828]
[1766659923078,0.69761038,836.06,835.07,1.79082828]
[1766659923279,0.69761038,836.05,835.07,1.79082828]
[1766659923475,0.69761038,836.04,835.08,1.79082828]
[1766659923678,0.87947505,836.31,835.08,1.79082828]
[1766659923883,1.89521467,836.3,835.08,1.79082828]
[1766659924081,1.89521467,836.29,835.08,1.79082828]
[1766659924278,1.89521467,836.28,835.08,1.79082828]
[1766659924583,0.69820292,836.27,835.09,1.79082828]
[1766659924878,0.69820292,836.26,835.09,1.79082828]
[1766659925080,0.69820292,836.25,835.09,1.79082828]
[1766659925283,0.69820292,836.24,835.09,1.79082828]
[1766659925480,0.69820292,836.23,835.11,1.79082828]
[1766659925682,0.69820292,836.22,835.11,1.79082828]
[1766659925884,0.69820292,836.21,835.1,1.79082828]
[1766659926079,0.87947505,836.29,835.1,1.79082828]
[1766659926080,0.69820292,836.2,835.1,1.79082828]
[1766659926280,0.69820292,836.19,835.1,1.79082828]
[1766659926584,0.69820292,836.18,835.11,1.79082828]
[1766659926782,0.69820292,836.17,835.11,1.79082828]
[1766659926985,0.69820292,836.16,835.11,1.79082828]
[1766659927186,0.69820292,836.15,835.11,1.79082828]
[1766659927481,0.20817008,836.32,835.12,1.79082828]
[1766659927685,0.88626151,836.27,835.12,1.79082828]
[1766659927886,1.89616756,836.26,835.12,1.79082828]
[1766659928082,1.89616756,836.25,835.12,1.79082828]
[1766659928386,1.89616756,836.24,835.12,1.79082828]
[1766659928681,0.69915379,836.23,835.12,1.79082828]
[1766659928883,0.69915379,836.22,835.12,1.79082828]
[1766659929082,0.69915379,836.21,835.12,1.79082828]
[1766659929281,0.69915379,836.2,835.11,1.79082828]
[1766659929487,0.69915379,836.19,835.11,1.79082828]
[1766659929684,0.69915379,836.18,835.11,1.79082828]
[1766659929982,0.69915379,836.17,835.11,1.79082828]
[1766659930183,0.69915379,836.16,835.11,1.79082828]
[1766659930381,0.69915379,836.15,835.11,1.79082828]
[1766659930585,0.69915379,836.14,835.11,1.79082828]
[1766659930885,0.69915379,836.13,835.11,1.79082828]
[1766659931188,0.69915379,836.12,835.11,1.79082828]
[1766659931382,0.69915379,836.11,835.11,1.79082828]
[1766659931680,0.69915379,836.1,835.11,1.79082828]
[1766659931885,0.69915379,836.09,835.11,1.79082828]
[1766659932183,0.69915379,836.08,835.11,1.79082828]
[1766659932381,0.69915379,836.07,835.11,1.79082828]
[1766659932585,0.69915379,836.06,835.11,1.79082828]
[1766659932784,0.69915379,836.05,835.11,1.79082828]
[1766659932982,0.69915379,836.04,835.11,1.79082828]
[1766659933186,0.69915379,836.03,835.12,1.79082828]
[1766659933482,0.69915379,836.02,835.12,1.79082828]
[1766659933681,0.69915379,836.01,835.12,1.79082828]
[1766659933882,0.88626151,836.27,835.11,1.79082828]
[1766659934080,1.89616493,836.26,835.11,1.79082828]
[1766659934280,1.89616493,836.25,835.11,1.79082828]
[1766659934484,0.69915103,836.24,835.11,1.79082828]
[1766659934683,0.69915103,836.23,835.11,1.79082828]
[1766659934887,0.69915103,836.22,835.11,1.79082828]
[1766659935186,0.69915103,836.21,835.11,1.79082828]
[1766659935484,0.69915103,836.2,835.11,1.79082828]
[1766659935786,0.69915103,836.19,835.11,1.79082828]
[1766659935982,0.69915103,836.18,835.11,1.79082828]
[1766659936184,0.69915103,836.17,835.12,1.79082828]
[1766659936383,0.69915103,836.16,835.12,1.79082828]
[1766659936583,0.69915103,836.15,835.13,1.79082828]
[1766659936784,0.88626151,836.29,835.13,1.79082828]
[1766659936785,0.69915103,836.14,835.13,1.79082828]
[1766659936988,0.69915103,836.13,835.13,1.79082828]
[1766659937284,0.69915103,836.12,835.12,1.79082828]
[1766659937489,0.69915103,836.11,835.13,1.79082828]
[1766659937688,0.69915103,836.1,835.13,1.79082828]
[1766659937884,0.69915103,836.09,835.13,1.79082828]
[1766659938189,0.69915103,836.08,835.13,1.79082828]
[1766659938485,0.69915103,836.07,835.13,1.79082828]
[1766659938684,0.69915103,836.06,835.13,1.79082828]
[1766659938888,0.69915103,836.05,835.13,1.79082828]
[1766659939089,0.69915103,836.04,835.13,1.79082828]
[1766659939287,0.69915103,836.03,835.12,1.79082828]
[1766659939585,0.69915103,836.02,835.13,1.79082828]
[1766659939791,0.88626151,836.29,835.13,1.79082828]
[1766659939989,1.89612792,836.28,835.12,1.79082828]
[1766659940183,1.89612792,836.27,835.12,1.79082828]
[1766659940388,0.69913674,836.26,835.13,1.79082828]
[1766659940589,0.69913674,836.25,835.13,1.79082828]
[1766659940789,0.69913674,836.24,835.13,1.79082828]
[1766659940991,0.69913674,836.23,835.13,1.79082828]
[1766659941188,0.69913674,836.22,835.13,1.79082828]
[1766659941392,0.69913674,836.21,835.12,1.79082828]
[1766659941693,0.69913674,836.2,835.12,1.79082828]
[1766659941991,0.69913674,836.19,835.12,1.79082828]
[1766659942192,0.69913674,836.18,835.12,1.79082828]
[1766659942492,0.69913674,836.17,835.12,1.79082828]
[1766659942692,0.69913674,836.16,835.12,1.79082828]
[1766659942992,0.69913674,836.15,835.12,1.79082828]
[1766659943192,0.69913674,836.14,835.12,1.79082828]
[1766659943490,0.69913674,836.13,835.12,1.79082828]
[1766659943691,0.69913674,836.12,835.12,1.79082828]
[1766659943892,0.69913674,836.11,835.12,1.79082828]
[1766659944093,0.69913674,836.1,835.12,1.79082828]
[1766659944393,0.69913674,836.09,835.12,1.79082828]
[1766659944688,0.69913674,836.08,835.12,1.79082828]
[1766659944890,0.69913674,836.07,835.12,1.79082828]